bitfinex/quotes_BTCUSD_20250316
["timestamp","ask_amount","ask_price","bid_price","bid_amount"]
[1742104248831,0.000339,84525.0,84524.0,0.46464829]
[1742104249467,0.000339,84525.0,84524.0,0.46164829]
[1742104249781,0.000339,84525.0,84524.0,0.46764829]
[1742104250020,0.000339,84525.0,84524.0,0.46164829]
[1742104250216,0.000339,84525.0,84524.0,0.46764829]
[1742104250456,0.000339,84525.0,84524.0,0.48474441]
[1742104250668,0.000339,84525.0,84524.0,0.50693027]
[1742104250911,0.000339,84525.0,84524.0,0.50093027]
[1742104251311,0.000339,84525.0,84524.0,0.50693027]
[1742104255740,0.000339,84525.0,84524.0,0.37625027]
[1742104255980,0.000339,84525.0,84524.0,0.50693027]
[1742104257242,0.000339,84525.0,84524.0,0.48474441]
[1742104257835,0.000339,84525.0,84524.0,0.47364829]
[1742104262787,0.000339,84525.0,84524.0,0.46164829]
[1742104263142,0.000339,84525.0,84524.0,0.46764829]
[1742104263364,0.000339,84525.0,84524.0,0.47364829]
[1742104263583,0.000339,84525.0,84524.0,1.22484829]
[1742104264380,0.000339,84525.0,84524.0,1.23594002]
[1742104266464,0.000339,84525.0,84524.0,1.01713002]
[1742104266666,0.000339,84525.0,84524.0,1.14777002]
[1742104267200,0.000339,84525.0,84524.0,1.15960002]
[1742104267824,0.000339,84525.0,84524.0,1.14850829]
[1742104268031,0.000339,84525.0,84524.0,1.14250829]
[1742104268427,0.000339,84525.0,84524.0,1.14650829]
[1742104269001,0.000339,84525.0,84524.0,1.14050829]
[1742104269541,0.000339,84525.0,84524.0,1.14650829]
[1742104270483,0.01888304,84525.0,84524.0,1.14650829]
[1742104271683,0.000339,84525.0,84524.0,1.14650829]
[1742104274938,0.01888294,84525.0,84524.0,1.14650829]
[1742104279385,0.000339,84525.0,84524.0,1.14650829]
[1742104282510,0.01888253,84525.0,84524.0,1.14650829]
[1742104282669,0.01888253,84525.0,84524.0,0.39530829]
[1742104283687,0.000339,84525.0,84524.0,0.39530829]
[1742104285984,0.000339,84525.0,84524.0,0.40641095]
[1742104286892,0.01888245,84525.0,84524.0,0.40641095]
[1742104287519,0.01888245,84525.0,84524.0,0.42862044]
[1742104287923,0.000339,84525.0,84524.0,0.42862044]
[1742104290163,0.000339,84525.0,84524.0,0.40641095]
[1742104291164,0.000339,84525.0,84524.0,0.39530829]
[1742104293950,0.000339,84525.0,84524.0,0.26466829]
[1742104294149,0.000339,84525.0,84524.0,0.39530829]
[1742104297927,0.000339,84525.0,84524.0,0.26466829]
[1742104298352,0.000339,84525.0,84524.0,0.39530829]
[1742104298896,0.000339,84525.0,84524.0,0.26466829]
[1742104299029,0.000339,84525.0,84524.0,0.39530829]
[1742104301242,0.000339,84525.0,84524.0,0.52020829]
[1742104302462,0.000339,84525.0,84524.0,0.51420829]
[1742104302680,0.000339,84525.0,84524.0,0.51020829]
[1742104303036,0.000339,84525.0,84524.0,0.51620829]
[1742104303221,0.000339,84525.0,84524.0,0.52220829]
[1742104303624,0.000339,84525.0,84524.0,0.51620829]
[1742104304994,0.000339,84525.0,84524.0,0.52220829]
[1742104325833,0.000339,84525.0,84524.0,1.27336829]
[1742104329172,0.000339,84525.0,84524.0,1.97336829]
[1742104330236,0.000339,84525.0,84524.0,2.10748417]
[1742104335469,0.000339,84529.0,84524.0,2.10748417]
[1742104335470,0.000339,84529.0,84528.0,0.33827785]
[1742104335657,0.000339,84529.0,84528.0,0.45785288]
[1742104335856,0.000339,84529.0,84528.0,0.46349025]
[1742104336646,0.000339,84529.0,84528.0,0.47449025]
[1742104336869,0.000339,84529.0,84528.0,0.51149555]
[1742104337104,0.000339,84529.0,84528.0,1.21149555]
[1742104337309,0.000339,84529.0,84528.0,1.17449025]
[1742104338007,0.000339,84529.0,84528.0,1.16949025]
[1742104338514,0.000339,84529.0,84528.0,1.17549025]
[1742104341150,0.000339,84529.0,84528.0,1.19942355]
[1742104344813,0.000339,84529.0,84528.0,0.49942355]
[1742104347786,0.000339,84529.0,84528.0,1.19942355]
[1742104348982,0.000339,84529.0,84528.0,1.33006355]
[1742104354611,0.000339,84529.0,84528.0,2.08110355]
[1742104366341,0.000339,84529.0,84528.0,2.11810564]
[1742104373241,0.000339,84529.0,84528.0,2.04280564]
[1742104380560,0.000339,84529.0,84528.0,2.14946196]
[1742104383792,0.000339,84529.0,84528.0,2.04280564]
[1742104388415,0.000339,84529.0,84528.0,2.06502637]
[1742104390626,0.000339,84529.0,84528.0,2.04280564]
[1742104401818,5.85e-05,84530.0,84529.0,0.02637085]
[1742104402029,5.85e-05,84530.0,84529.0,0.8897668]
[1742104402236,5.85e-05,84530.0,84529.0,0.88858409]
[1742104402975,5.85e-05,84530.0,84529.0,1.64562409]
[1742104404964,5.85e-05,84530.0,84529.0,1.65162409]
[1742104407801,0.0003973,84530.0,84529.0,1.78222409]
[1742104409271,0.0003973,84530.0,84529.0,1.65162409]
[1742104409470,0.0003973,84530.0,84529.0,1.78222409]
[1742104420094,0.0003973,84530.0,84529.0,1.78239349]
[1742104421620,0.0003973,84530.0,84529.0,1.65179349]
[1742104421843,0.0003973,84530.0,84529.0,1.78239349]
[1742104426734,0.0003973,84530.0,84529.0,1.51767761]
[1742104426850,0.0003973,84530.0,84529.0,0.91127552]
[1742104446347,0.0003973,84530.0,84529.0,0.78067552]
[1742104446549,0.0003973,84530.0,84529.0,0.91127552]
[1742104450565,0.0003973,84530.0,84529.0,0.93346059]
[1742104454008,0.0003973,84530.0,84529.0,0.91127552]
[1742104456288,0.0003973,84530.0,84529.0,0.9334841]
[1742104459082,0.0003973,84530.0,84529.0,0.8028841]
[1742104459311,0.0003973,84530.0,84529.0,0.9334841]
[1742104462212,0.0003973,84530.0,84529.0,0.91127552]
[1742104467296,0.0003973,84530.0,84529.0,0.93349969]
[1742104467979,0.0003973,84530.0,84529.0,0.80289969]
[1742104468175,0.0003973,84530.0,84529.0,0.93349969]
[1742104468539,0.0003973,84530.0,84529.0,0.91127552]
[1742104477630,0.0003973,84530.0,84529.0,0.93350259]
[1742104492847,0.0003973,84530.0,84529.0,0.94804344]
[1742104499337,0.0003973,84530.0,84529.0,0.81744344]
[1742104499503,0.0003973,84530.0,84529.0,0.94804344]
[1742104501123,0.0003973,84530.0,84529.0,0.92581637]
[1742104504263,0.0003973,84530.0,84529.0,0.91127552]
[1742104505989,0.0003973,84530.0,84529.0,0.9334898]
[1742104507363,0.0003973,84530.0,84529.0,0.94459631]
[1742104511050,0.0003973,84530.0,84529.0,0.9334898]
[1742104517847,0.0003973,84530.0,84529.0,0.94459453]
[1742104520861,0.0003973,84530.0,84529.0,0.9334898]
[1742104534204,0.0003973,84530.0,84529.0,0.94459801]
[1742104535777,0.0003973,84530.0,84529.0,0.9334898]
[1742104537869,0.0003973,84530.0,84529.0,0.91127552]
[1742104539587,0.0003973,84530.0,84529.0,1.00201637]
[1742104540343,0.0003973,84530.0,84529.0,1.02421982]
[1742104540559,0.0003973,84530.0,84529.0,1.13779485]
[1742104540759,3e-07,84530.0,84529.0,1.13179485]
[1742104540893,3e-07,84530.0,84529.0,1.17478751]
[1742104541097,3e-07,84530.0,84529.0,1.88078751]
[1742104541500,3e-07,84530.0,84529.0,1.83779485]
[1742104541923,3e-07,84530.0,84529.0,1.83179485]
[1742104542123,3e-07,84530.0,84529.0,1.83779485]
[1742104543887,3e-07,84530.0,84529.0,1.88429485]
[1742104544596,3e-07,84530.0,84529.0,1.89029485]
[1742104545169,3e-07,84530.0,84529.0,1.88429485]
[1742104545563,3e-07,84530.0,84529.0,1.89029485]
[1742104551368,3e-07,84530.0,84529.0,1.87829485]
[1742104552048,3e-07,84530.0,84529.0,1.89029485]
[1742104567378,3e-07,84530.0,84529.0,2.19029485]
[1742104567550,3e-07,84530.0,84529.0,2.27722037]
[1742104568338,3e-07,84530.0,84529.0,2.27122037]
[1742104568754,3e-07,84530.0,84529.0,2.27722037]
[1742104570327,3e-07,84530.0,84529.0,2.27122037]
[1742104570527,3e-07,84530.0,84529.0,2.68472037]
[1742104570809,3e-07,84530.0,84529.0,2.69072037]
[1742104571406,3e-07,84530.0,84529.0,2.69572037]
[1742104575569,3e-07,84530.0,84529.0,2.69588037]
[1742104576526,3e-07,84530.0,84529.0,2.82068037]
[1742104577032,3e-07,84530.0,84529.0,2.43742037]
[1742104577157,3e-07,84530.0,84529.0,2.56814037]
[1742104578001,3e-07,84530.0,84529.0,2.56214037]
[1742104578579,3e-07,84530.0,84529.0,2.51214037]
[1742104578917,3e-07,84530.0,84529.0,2.56814037]
[1742104581404,3e-07,84530.0,84529.0,2.51814037]
[1742104581586,3e-07,84530.0,84529.0,2.56814037]
[1742104582197,3e-07,84530.0,84529.0,2.56250425]
[1742104582398,3e-07,84530.0,84529.0,2.56814018]
[1742104582619,3e-07,84530.0,84529.0,2.51814018]
[1742104582957,3e-07,84530.0,84529.0,2.56814018]
[1742104583654,3e-07,84530.0,84529.0,2.51814018]
[1742104583862,3e-07,84530.0,84529.0,2.56814018]
[1742104584809,3e-07,84530.0,84529.0,2.51814018]
[1742104585034,3e-07,84530.0,84529.0,2.56814018]
[1742104585977,3e-07,84530.0,84529.0,2.51814018]
[1742104586183,3e-07,84530.0,84529.0,2.56814018]
[1742104590529,3e-07,84530.0,84529.0,2.51814018]
[1742104590734,3e-07,84530.0,84529.0,2.56814018]
[1742104591054,3e-07,84530.0,84529.0,2.51814018]
[1742104591259,3e-07,84530.0,84529.0,2.56822018]
[1742104591754,3e-07,84530.0,84529.0,2.51822018]
[1742104591959,3e-07,84530.0,84529.0,2.56822018]
[1742104592657,3e-07,84530.0,84529.0,2.43742018]
[1742104592857,3e-07,84530.0,84529.0,2.56818018]
[1742104595064,3e-07,84530.0,84529.0,2.56814018]
[1742104595373,3e-07,84530.0,84529.0,2.43742018]
[1742104595573,3e-07,84530.0,84529.0,2.56814018]
[1742104596096,3e-07,84530.0,84529.0,2.43742018]
[1742104596327,3e-07,84530.0,84529.0,2.56814018]
[1742104598010,3e-07,84530.0,84529.0,2.51814018]
[1742104598143,3e-07,84530.0,84529.0,2.56814018]
[1742104598502,3e-07,84530.0,84529.0,2.56810018]
[1742104598704,3e-07,84530.0,84529.0,2.51810018]
[1742104598906,3e-07,84530.0,84529.0,2.56810018]
[1742104599713,3e-07,84530.0,84529.0,2.43742018]
[1742104599889,3e-07,84530.0,84529.0,2.56810018]
[1742104603719,3e-07,84530.0,84529.0,2.51810018]
[1742104603930,3e-07,84530.0,84529.0,2.56810018]
[1742104604795,3e-07,84530.0,84529.0,2.51810018]
[1742104605209,3e-07,84530.0,84529.0,2.56810018]
[1742104606278,3e-07,84530.0,84529.0,2.51810018]
[1742104606484,3e-07,84530.0,84529.0,2.56810018]
[1742104608069,3e-07,84530.0,84529.0,2.51810018]
[1742104625908,3e-07,84530.0,84529.0,2.51798018]
[1742104629702,3e-07,84530.0,84529.0,2.38742018]
[1742104629910,3e-07,84530.0,84529.0,2.51798018]
[1742104631205,3e-07,84530.0,84529.0,2.38742018]
[1742104631616,3e-07,84530.0,84529.0,2.51798018]
[1742104632779,3e-07,84530.0,84529.0,2.38742018]
[1742104633120,3e-07,84530.0,84529.0,2.51798018]
[1742104633701,3e-07,84530.0,84529.0,2.38742018]
[1742104634102,3e-07,84530.0,84529.0,2.51798018]
[1742104634428,3e-07,84530.0,84529.0,2.38742018]
[1742104634734,3e-07,84530.0,84529.0,2.51798018]
[1742104635145,3e-07,84530.0,84529.0,2.38742018]
[1742104635314,3e-07,84530.0,84529.0,2.51798018]
[1742104636434,3e-07,84530.0,84529.0,2.38742018]
[1742104636640,3e-07,84530.0,84529.0,2.51798018]
[1742104636957,3e-07,84530.0,84529.0,2.38742018]
[1742104637098,3e-07,84530.0,84529.0,2.51798018]
[1742104638041,3e-07,84530.0,84529.0,2.38742018]
[1742104638620,3e-07,84530.0,84529.0,2.51798018]
[1742104642282,3e-07,84530.0,84529.0,2.49577673]
[1742104651073,3e-07,84530.0,84529.0,2.36521673]
[1742104651294,3e-07,84530.0,84529.0,2.49577673]
[1742104651491,3e-07,84530.0,84529.0,2.36521673]
[1742104651697,3e-07,84530.0,84529.0,2.49577673]
[1742104652357,0.0812003,84530.0,84529.0,1.48067533]
[1742104652556,0.0812003,84530.0,84529.0,1.61123533]
[1742104652767,0.0812003,84530.0,84529.0,1.62744415]
[1742104653168,0.0812003,84530.0,84529.0,1.62144415]
[1742104653316,0.1283003,84530.0,84529.0,1.49088415]
[1742104653497,0.1283003,84530.0,84529.0,1.62744415]
[1742104653942,0.1283003,84530.0,84529.0,1.63344415]
[1742104654141,0.1283003,84530.0,84529.0,0.93944415]
[1742104654553,0.1283003,84530.0,84529.0,0.93344415]
[1742104654923,0.1283003,84530.0,84529.0,0.91723533]
[1742104665663,0.0471003,84530.0,84529.0,0.91723533]
[1742104668775,3e-07,84530.0,84529.0,0.91723533]
[1742104671546,3e-07,84530.0,84529.0,0.93177618]
[1742104681777,3e-07,84530.0,84529.0,1.63177618]
[1742104697421,3e-07,84530.0,84529.0,1.83405121]
[1742104697583,3e-07,84530.0,84529.0,1.86504096]
[1742104697780,3e-07,84530.0,84529.0,1.72248096]
[1742104697980,3e-07,84530.0,84529.0,1.85308096]
[1742104698207,3e-07,84530.0,84529.0,1.85908096]
[1742104698368,3e-07,84530.0,84529.0,1.81609121]
[1742104698570,3e-07,84530.0,84529.0,1.85307409]
[1742104698770,3e-07,84530.0,84529.0,1.72847409]
[1742104698992,3e-07,84530.0,84529.0,1.82209121]
[1742104699197,3e-07,84530.0,84529.0,1.72847447]
[1742104699394,3e-07,84530.0,84529.0,1.82209121]
[1742104699597,3e-07,84530.0,84529.0,1.85906997]
[1742104700043,3e-07,84530.0,84529.0,1.82209121]
[1742104700360,3e-07,84530.0,84529.0,1.85906953]
[1742104700571,3e-07,84530.0,84529.0,1.82209121]
[1742104701617,3e-07,84530.0,84529.0,1.69149121]
[1742104701819,3e-07,84530.0,84529.0,1.82205121]
[1742104702227,3e-07,84530.0,84529.0,1.82805121]
[1742104702810,3e-07,84530.0,84529.0,1.12205121]
[1742104703203,3e-07,84530.0,84529.0,0.99749121]
[1742104703374,3e-07,84530.0,84529.0,1.12805121]
[1742104705733,3e-07,84530.0,84529.0,1.82805121]
[1742104710850,3e-07,84530.0,84529.0,1.69749121]
[1742104711054,3e-07,84530.0,84529.0,1.82805121]
[1742104713408,3e-07,84530.0,84529.0,1.8650137]
[1742104713635,3e-07,84530.0,84529.0,1.82805121]
[1742104717780,3e-07,84530.0,84529.0,1.74535121]
[1742104724128,3e-07,84530.0,84529.0,1.73935121]
[1742104725935,3e-07,84530.0,84529.0,1.74535121]
[1742104726151,3e-07,84530.0,84529.0,1.61479121]
[1742104726357,3e-07,84530.0,84529.0,1.74535121]
[1742104729556,3e-07,84530.0,84529.0,1.78233739]
[1742104735260,3e-07,84530.0,84529.0,1.85953739]
[1742104736919,3e-07,84530.0,84529.0,1.78233739]
[1742104741698,3e-07,84530.0,84529.0,1.88896681]
[1742104741910,3e-07,84530.0,84529.0,2.01836681]
[1742104742324,1e-07,84540.0,84539.0,0.34544585]
[1742104742450,1e-07,84540.0,84539.0,0.47044544]
[1742104742656,1e-07,84540.0,84539.0,0.60100544]
[1742104743445,1e-07,84540.0,84539.0,1.30100544]
[1742104744247,1e-07,84540.0,84539.0,1.17044544]
[1742104744486,1e-07,84540.0,84539.0,1.30100544]
[1742104744892,1e-07,84540.0,84539.0,1.17644544]
[1742104745092,1e-07,84540.0,84539.0,1.30700544]
[1742104745809,1e-07,84540.0,84539.0,1.34998657]
[1742104745988,1e-07,84540.0,84539.0,1.21942657]
[1742104746168,1e-07,84540.0,84539.0,1.34998657]
[1742104746368,1e-07,84540.0,84539.0,1.18244544]
[1742104746572,1e-07,84540.0,84539.0,1.31300544]
[1742104747720,1e-07,84540.0,84539.0,1.35990544]
[1742104747977,1e-07,84540.0,84539.0,1.39687475]
[1742104748194,1e-07,84540.0,84539.0,1.40574622]
[1742104749066,1e-07,84540.0,84539.0,1.70574622]
[1742104750482,1e-07,84540.0,84539.0,1.81237564]
[1742104753382,1e-07,84540.0,84539.0,1.77540633]
[1742104753583,1e-07,84540.0,84539.0,1.66877691]
[1742104759366,1e-07,84540.0,84539.0,2.41969691]
[1742104761871,1e-07,84540.0,84539.0,2.28913691]
[1742104762075,1e-07,84540.0,84539.0,2.41965691]
[1742104763593,1e-07,84540.0,84539.0,2.28913691]
[1742104763787,1e-07,84540.0,84539.0,2.41965691]
[1742104765291,1e-07,84540.0,84539.0,2.37275691]
[1742104766576,1e-07,84540.0,84539.0,2.37292631]
[1742104768626,1e-07,84540.0,84539.0,2.24240631]
[1742104768820,1e-07,84540.0,84539.0,2.37292631]
[1742104769604,1e-07,84540.0,84539.0,2.24240631]
[1742104769991,1e-07,84540.0,84539.0,2.37292631]
[1742104770727,1e-07,84540.0,84539.0,2.27934567]
[1742104771194,1e-07,84540.0,84539.0,2.40986567]
[1742104772414,1e-07,84540.0,84539.0,2.45606567]
[1742104772546,1e-07,84540.0,84539.0,2.51106567]
[1742104773173,1e-07,84558.0,84557.0,0.011826]
[1742104773376,1e-07,84558.0,84557.0,0.51298788]
[1742104773550,1e-07,84558.0,84557.0,1.26926993]
[1742104773755,1e-07,84558.0,84557.0,1.96926993]
[1742104774437,9.292e-05,84558.0,84557.0,1.96926993]
[1742104775051,9.292e-05,84558.0,84557.0,1.97526993]
[1742104776930,9.2e-07,84558.0,84557.0,1.97526993]
[1742104777512,9.2e-07,84558.0,84557.0,1.98126993]
[1742104778141,9.2e-07,84558.0,84557.0,2.0161439]
[1742104780154,7.2e-07,84558.0,84557.0,2.0161439]
[1742104780576,7.2e-07,84558.0,84557.0,2.3161439]
[1742104787770,7.2e-07,84558.0,84557.0,2.1856239]
[1742104787910,7.2e-07,84558.0,84557.0,2.3161439]
[1742104797227,7.2e-07,84558.0,84557.0,2.1856239]
[1742104797460,7.2e-07,84558.0,84557.0,2.30156305]
[1742104797619,7.2e-07,84558.0,84557.0,2.3161039]
[1742104798365,7.2e-07,84558.0,84557.0,2.1856239]
[1742104798549,7.2e-07,84558.0,84557.0,2.3161039]
[1742104802291,7.2e-07,84558.0,84557.0,2.3162733]
[1742104806305,7.2e-07,84558.0,84557.0,2.35321458]
[1742104820046,7.2e-07,84558.0,84557.0,2.45942439]
[1742104822681,7.2e-07,84558.0,84557.0,2.35321458]
[1742104824014,5.2e-07,84565.0,84564.0,0.34477285]
[1742104824199,5.2e-07,84565.0,84564.0,1.20128916]
[1742104826897,5.2e-07,84565.0,84564.0,1.20728916]
[1742104828114,5.2e-07,84565.0,84564.0,1.21328916]
[1742104828516,5.2e-07,84565.0,84564.0,1.3197084]
[1742104832762,5.2e-07,84565.0,84564.0,1.32858167]
[1742104838473,5.2e-07,84565.0,84564.0,1.29164039]
[1742104838769,5.2e-07,84565.0,84564.0,1.18522115]
[1742104840413,5.2e-07,84565.0,84564.0,1.93590115]
[1742104844935,5.2e-07,84565.0,84564.0,2.06638115]
[1742104848537,5.2e-07,84565.0,84564.0,2.06655055]
[1742104851526,5.2e-07,84565.0,84564.0,2.10348876]
[1742104857010,5.2e-07,84565.0,84564.0,1.74811961]
[1742104857249,0.07640052,84565.0,84564.0,1.7111814]
[1742104857495,0.12390052,84565.0,84564.0,1.8416614]
[1742104858492,0.12390052,84565.0,84564.0,1.8356614]
[1742104858690,0.12390052,84565.0,84564.0,1.8416614]
[1742104858846,0.12390052,84565.0,84564.0,1.8356614]
[1742104859054,0.12390052,84565.0,84564.0,1.1416614]
[1742104859278,0.12390052,84565.0,84564.0,0.9993564]
[1742104859486,0.12390052,84565.0,84564.0,1.1416614]
[1742104860963,0.12390052,84565.0,84564.0,1.1356614]
[1742104861674,0.12390052,84565.0,84564.0,1.1296614]
[1742104862074,0.12390052,84565.0,84564.0,1.1356614]
[1742104863487,0.04750052,84565.0,84564.0,1.1416614]
[1742104874999,0.04750052,84565.0,84564.0,1.0111814]
[1742104875217,0.04750052,84565.0,84564.0,1.1416614]
[1742104876860,0.04750052,84565.0,84564.0,1.0111814]
[1742104877046,0.04750052,84565.0,84564.0,1.1416614]
[1742104877950,5.2e-07,84565.0,84564.0,1.1416614]
[1742104886270,5.2e-07,84565.0,84564.0,1.0111814]
[1742104886475,5.2e-07,84565.0,84564.0,1.1416614]
[1742104887825,5.2e-07,84565.0,84564.0,1.15276228]
[1742104889680,5.2e-07,84565.0,84564.0,1.1416614]
[1742104894265,0.04612163,84573.0,84572.0,0.248308]
[1742104895345,0.04612163,84573.0,84572.0,0.252308]
[1742104897219,0.06465512,84573.0,84572.0,0.252308]
[1742104898067,0.01853349,84573.0,84572.0,0.252308]
[1742104898494,0.01853349,84573.0,84572.0,0.257308]
[1742104900307,0.077239,84577.0,84576.0,0.248296]
[1742104901703,0.000339,84577.0,84576.0,0.248296]
[1742104902106,0.000339,84577.0,84576.0,0.251296]
[1742104902894,0.000339,84577.0,84576.0,0.25938733]
[1742104903071,0.000339,84577.0,84576.0,0.28716945]
[1742104903270,0.000339,84577.0,84576.0,0.29316945]
[1742104905166,0.000339,84577.0,84576.0,0.28916945]
[1742104906608,0.000339,84577.0,84576.0,0.27807812]
[1742104907441,0.000339,84577.0,84576.0,0.28407812]
[1742104911359,0.000339,84577.0,84576.0,0.41455812]
[1742104916529,0.000339,84577.0,84576.0,1.16527812]
[1742104927185,0.000339,84577.0,84576.0,1.03479812]
[1742104927418,0.000339,84577.0,84576.0,1.16523812]
[1742104931101,0.000339,84577.0,84576.0,1.15341512]
[1742104931514,0.000339,84577.0,84576.0,1.16523812]
[1742104933113,0.000339,84577.0,84576.0,1.15341512]
[1742104933727,0.000339,84577.0,84576.0,1.14741512]
[1742104933928,0.000339,84577.0,84576.0,1.14641512]
[1742104934274,0.000339,84577.0,84576.0,1.15241512]
[1742104934418,0.01887133,84577.0,84576.0,1.15241512]
[1742104935025,0.01887133,84577.0,84576.0,1.15761096]
[1742104935427,0.000339,84577.0,84576.0,1.15761096]
[1742104935833,0.000339,84577.0,84576.0,1.16943396]
[1742104938883,0.01887117,84577.0,84576.0,1.16943396]
[1742104939794,0.000339,84577.0,84576.0,1.16943396]
[1742104942626,0.000339,84577.0,84576.0,1.15761096]
[1742104943126,0.01887124,84577.0,84576.0,1.15761096]
[1742104944118,0.000339,84577.0,84576.0,1.15761096]
[1742104949898,0.000339,84577.0,84576.0,1.16943396]
[1742104952548,0.000339,84577.0,84576.0,1.15761096]
[1742104952914,0.00012617,84577.0,84576.0,1.15761096]
[1742104954849,0.00012617,84577.0,84576.0,0.40689096]
[1742104955433,0.00012617,84577.0,84576.0,0.01619584]
[1742104955693,0.43904917,84577.0,84576.0,0.14663584]
[1742104956129,0.36675921,84577.0,84576.0,0.14663584]
[1742104956817,0.06675921,84577.0,84576.0,0.14063584]
[1742104956973,0.04822617,84577.0,84576.0,0.01419584]
[1742104957183,0.04822617,84577.0,84576.0,0.14463584]
[1742104958233,0.04822617,84577.0,84576.0,0.13563584]
[1742104958674,0.04822617,84577.0,84576.0,0.14263584]
[1742104963197,0.00012617,84577.0,84576.0,0.14263584]
[1742104963752,0.00012617,84577.0,84576.0,0.14280524]
[1742104964770,0.00012617,84577.0,84576.0,0.15462824]
[1742104966192,0.00012617,84577.0,84576.0,0.15062824]
[1742104966354,0.00012617,84577.0,84576.0,0.14762824]
[1742104966558,0.00012617,84577.0,84576.0,0.15262824]
[1742104966780,0.00012617,84577.0,84576.0,0.15662824]
[1742104968753,0.0186591,84577.0,84576.0,0.15662824]
[1742104969763,0.00012617,84577.0,84576.0,0.15662824]
[1742104972250,0.00012617,84577.0,84576.0,0.14480524]
[1742104974537,0.01865927,84577.0,84576.0,0.14480524]
[1742104976586,0.01865927,84577.0,84576.0,0.01436524]
[1742104976764,0.01865927,84577.0,84576.0,0.14480524]
[1742104977554,0.01865927,84577.0,84576.0,0.01436524]
[1742104977760,0.01865927,84577.0,84576.0,0.14480524]
[1742104978311,0.00012617,84577.0,84576.0,0.14480524]
[1742104981731,0.01865925,84577.0,84576.0,0.14480524]
[1742104982763,0.00012617,84577.0,84576.0,0.14480524]
[1742104985809,0.01865943,84577.0,84576.0,0.14480524]
[1742104986837,0.00012617,84577.0,84576.0,0.14480524]
[1742104990082,0.01865932,84577.0,84576.0,0.14480524]
[1742104991299,0.00012617,84577.0,84576.0,0.14480524]
[1742104994284,0.01865931,84577.0,84576.0,0.14480524]
[1742104996210,0.55512931,84577.0,84576.0,0.14480524]
[1742104997338,0.31865931,84577.0,84576.0,0.14480524]
[1742104997595,0.31865931,84577.0,84576.0,0.14080524]
[1742104998155,0.31865931,84577.0,84576.0,0.14380524]
[1742104998770,0.30012617,84577.0,84576.0,0.14380524]
[1742104999859,0.30012617,84577.0,84576.0,0.13880524]
[1742105000059,0.30012617,84577.0,84576.0,0.14280524]
[1742105000308,0.30012617,84577.0,84576.0,0.15462824]
[1742105002029,0.31865933,84577.0,84576.0,0.15462824]
[1742105003144,0.30012617,84577.0,84576.0,0.15462824]
[1742105006260,0.31865932,84577.0,84576.0,0.15462824]
[1742105007362,0.30012617,84577.0,84576.0,0.15462824]
[1742105010688,0.31865932,84577.0,84576.0,0.15462824]
[1742105011732,0.30012617,84577.0,84576.0,0.15462824]
[1742105014821,0.31865933,84577.0,84576.0,0.15462824]
[1742105017638,0.31865933,84577.0,84576.0,0.14280524]
[1742105019352,0.30012617,84577.0,84576.0,0.14280524]
[1742105022663,0.31865933,84577.0,84576.0,0.14280524]
[1742105023644,0.30012617,84577.0,84576.0,0.14280524]
[1742105030347,0.30012617,84577.0,84576.0,0.37927824]
[1742105030544,0.30012617,84577.0,84576.0,0.01236524]
[1742105030772,0.30012617,84577.0,84576.0,0.14280524]
[1742105031172,0.31865945,84577.0,84576.0,0.14280524]
[1742105032202,0.30012617,84577.0,84576.0,0.14280524]
[1742105036606,0.31865945,84577.0,84576.0,0.14280524]
[1742105040016,0.30012617,84577.0,84576.0,0.14280524]
[1742105043192,0.3186594,84577.0,84576.0,0.14280524]
[1742105047237,0.30012617,84577.0,84576.0,0.14280524]
[1742105050630,0.31865939,84577.0,84576.0,0.14280524]
[1742105051566,0.30012617,84577.0,84576.0,0.14280524]
[1742105055480,0.31865935,84577.0,84576.0,0.14280524]
[1742105056616,0.30012617,84577.0,84576.0,0.14280524]
[1742105060417,0.31865933,84577.0,84576.0,0.14280524]
[1742105061579,0.30012617,84577.0,84576.0,0.14280524]
[1742105064683,0.3186594,84577.0,84576.0,0.14280524]
[1742105075858,0.3186594,84577.0,84576.0,0.14276524]
[1742105083829,0.3186594,84577.0,84576.0,0.01236524]
[1742105084029,0.3186594,84577.0,84576.0,0.14276524]
[1742105090067,0.3304824,84577.0,84576.0,0.01236524]
[1742105090474,0.3304824,84577.0,84576.0,0.0071694]
[1742105090668,0.31194917,84577.0,84576.0,0.0071694]
[1742105091298,0.39484917,84577.0,84576.0,0.0031694]
[1742105091500,0.43994917,84577.0,84576.0,0.0001694]
[1742105091699,0.43994917,84577.0,84576.0,0.0021694]
[1742105092103,0.43994917,84577.0,84576.0,0.0001694]
[1742105094065,0.45848581,84577.0,84576.0,0.0001694]
[1742105095149,0.43994917,84577.0,84576.0,0.0001694]
[1742105106420,0.45848547,84577.0,84576.0,0.0001694]
[1742105107495,0.43994917,84577.0,84576.0,0.0001694]
[1742105107841,0.5595242,84577.0,84576.0,0.0001694]
[1742105109480,0.43994917,84577.0,84576.0,0.0001694]
[1742105112185,0.45848565,84577.0,84576.0,0.0001694]
[1742105117204,0.37558565,84577.0,84576.0,0.0001694]
[1742105119794,0.33048565,84577.0,84576.0,0.0001694]
[1742105155343,0.38048565,84577.0,84576.0,0.0001694]
[1742105159207,0.50006068,84577.0,84576.0,0.0001694]
[1742105168816,0.45006068,84577.0,84576.0,0.0001694]
[1742105169021,0.50006068,84577.0,84576.0,0.0001694]
[1742105179166,0.45006068,84577.0,84576.0,0.0001694]
[1742105179368,0.50006068,84577.0,84576.0,0.0001694]
[1742105183255,0.45006068,84577.0,84576.0,0.0001694]
[1742105183455,0.50006068,84577.0,84576.0,0.0001694]
[1742105185648,0.92296068,84577.0,84576.0,4e-07]
[1742105185965,1.04266505,84577.0,84576.0,4e-07]
[1742105186316,0.548364,84553.0,84552.0,0.07391609]
[1742105186518,0.548364,84553.0,84552.0,0.07806978]
[1742105186732,0.548364,84553.0,84552.0,0.00415369]
[1742105186935,0.548376,84549.0,84547.0,0.1304]
[1742105187136,0.548376,84549.0,84548.0,0.05275072]
[1742105188256,0.548376,84549.0,84548.0,0.05375072]
[1742105188462,0.56045047,84549.0,84548.0,0.05375072]
[1742105188879,0.56045047,84549.0,84548.0,0.05475072]
[1742105189256,0.57899174,84549.0,84548.0,0.00695072]
[1742105189664,0.57899174,84549.0,84548.0,0.00595072]
[1742105190292,0.56045047,84549.0,84548.0,0.00595072]
[1742105191266,0.56045047,84549.0,84548.0,0.00895072]
[1742105193360,0.57899244,84549.0,84548.0,0.00895072]
[1742105193546,0.57899244,84549.0,84548.0,0.00441317]
[1742105194307,0.57899244,84549.0,84548.0,0.00141317]
[1742105194507,0.57899244,84549.0,84548.0,0.00241317]
[1742105195201,0.57899244,84549.0,84548.0,0.00041317]
[1742105195408,0.57899244,84549.0,84548.0,0.00141317]
[1742105198079,0.56045047,84549.0,84548.0,0.00141317]